Workbook

Sheet ORÇAMENTO
D1: PLANILHA ORÇAMENTÁRIA - R01 - ENGENHEIRO PLENO 50% DE DEDICAÇÃO
B3: OBRA: CONSTRUÇÃO DA SEDE DA CÂMARA MUNICIPAL DE IPIRANGA DO NORTE-MT
B4: BANCO DE DADOS: SINAPI MT - NÃO DESONERADA - SET/24 | H4: BDI: | I4: =BDI!C15 -> 0.25
A6: Item | B6: Fonte | C6: Código | D6: Descricao | E6: Unid | F6: Qtde | G6: Custo unitario | H6: Custo total | I6: Preço unitario | J6: Preço total
H7: =SUMPRODUCT($F$8:$F$9687,G8:G9687) -> 404042.46 | J7: =SUMPRODUCT($F$8:$F$9687,I8:I9687) -> 505053.075
A8: 1. | B8: SINAPI | C8: 93567 | D8: ENGENHEIRO CIVIL DE OBRA PLENO COM ENCARGOS COMPLEMENTARES - REFERENTE AO ENGENHEIRO CIVIL RESIDENTE - 50% de dedicação (4 horas por dia, todos os dias) | E8: MES | F8: =36*50% -> 18 | G8: 21625.07 | H8: =F8*G8 -> 389251.26 | I8: =G8*(1+$I$4) -> 27031.3375 | J8: =I8*F8 -> 486564.075
A9: 2. | B9: SINAPI | C9: 90778 | D9: ENGENHEIRO ELETRICISTA DE OBRA PLENO COM ENCARGOS COMPLEMENTARES - 22 HORAS MENSAIS DURANTE 4 MESES DE ACORDO COM A DEMANDA DA OBRA | E9: H | F9: =22*4 -> 88 | G9: 123.26 | H9: =F9*G9 -> 10846.88 | I9: =G9*(1+$I$4) -> 154.075 | J9: =I9*F9 -> 13558.6
A10: 3. | B10: SINAPI | C10: 90778 | D10: ENGENHEIRO MECÂNICO DE OBRA PLENO COM ENCARGOS COMPLEMENTARES - 8 HORAS MENSAIS DURANTE 4 MESES DE ACORDO COM A DEMANDA DA OBRA | E10: H | F10: =8*4 -> 32 | G10: 123.26 | H10: =F10*G10 -> 3944.32 | I10: =G10*(1+$I$4) -> 154.075 | J10: =I10*F10 -> 4930.4

Sheet BDI
B3: CÁLCULO DO BDI
B4: BDI | C4: %
B5: ADMINISTRAÇÃO CENTRAL (AC) | C5: 0.03
B6: DESPESAS FINANCEIRAS (DF) | C6: 0.0059
B7: SEGURO (S) + GARANTIA (G) | C7: 0.008
B8: RISCOS (R) | C8: 0.0097
B9: TRIBUTOS (I) | C9: 0.0865
B10: ISSQN (LOCALIDADE) | C10: 0.05
B11: PIS | C11: 0.0065
B12: COFINS | C12: 0.03
B13: CPRB
B14: LUCRO BRUTO | C14: 0.0835
B15: TOTAL DO BDI | C15: =ROUND((1+(C5+C7+C8))*(1+C6)*(1+C14)/(1-C9)-1,4) -> 0.25

Sheet CRONOGRAMA
A1: CRONOGRAMA FÍSICO/FINANCEIRO
B3: =ORÇAMENTO!B3 -> OBRA: CONSTRUÇÃO DA SEDE DA CÂMARA MUNICIPAL DE IPIRANGA DO NORTE-MT
B5: =ORÇAMENTO!B4 -> BANCO DE DADOS: SINAPI MT - NÃO DESONERADA - SET/24
E8: MÊS 1 | F8: MÊS 2 | G8: MÊS 3 | H8: MÊS 4 | I8: MÊS 5 | J8: MÊS 6 | K8: MÊS 7 | L8: MÊS 8 | M8: MÊS 9 | N8: MÊS 10 | O8: MÊS 11 | P8: MÊS 12 | Q8: MÊS 13 | R8: MÊS 14 | S8: MÊS 15 | T8: MÊS 16 | U8: MÊS 17 | V8: MÊS 18 | W8: MÊS 19 | X8: MÊS 20 | Y8: MÊS 21 | Z8: MÊS 22 | AA8: MÊS 23 | AB8: MÊS 24 | AC8: MÊS 25 | AD8: MÊS 26 | AE8: MÊS 27 | AF8: MÊS 28 | AG8: MÊS 29 | AH8: MÊS 30 | AI8: MÊS 31 | AJ8: MÊS 32 | AK8: MÊS 33 | AL8: MÊS 34 | AM8: MÊS 35 | AN8: MÊS 36
A9: 1. | B9: =VLOOKUP($A9,ORÇAMENTO!$A$8:$J$801,4,FALSE) -> ENGENHEIRO CIVIL DE OBRA PLENO COM ENCARGOS COMPLEMENTARES - REFERENTE AO ENGENHEIRO CIVIL RESIDENTE - 50% de dedicação (4 horas por dia, todos os dias) | C9: =VLOOKUP($A9,ORÇAMENTO!$A$8:$J$801,10,FALSE) -> 486564.075 | D9: =C9/$C$18 -> 0.9633919663 | E9: =E11*$C9 -> 13515.66875 | F9: 13515.66875 | G9: 13515.66875 | H9: 13515.66875 | I9: 13515.66875 | J9: 13515.66875 | K9: 13515.66875 | L9: 13515.66875 | M9: 13515.66875 | N9: 13515.66875 | O9: 13515.66875 | P9: 13515.66875 | Q9: =Q11*$C9 -> 13515.66875 | R9: 13515.66875 | S9: =S11*$C9 -> 13515.66875 | T9: 13515.66875 | U9: 13515.66875 | V9: 13515.66875 | W9: 13515.66875 | X9: 13515.66875 | Y9: 13515.66875 | Z9: 13515.66875 | AA9: 13515.66875 | AB9: 13515.66875 | AC9: 13515.66875 | AD9: 13515.66875 | AE9: 13515.66875 | AF9: 13515.66875 | AG9: 13515.66875 | AH9: 13515.66875 | AI9: 13515.66875 | AJ9: 13515.66875 | AK9: 13515.66875 | AL9: 13515.66875 | AM9: 13515.66875 | AN9: 13515.66875
E10: =E11 -> 0.02777777778 | F10: 0.02777777778 | G10: 0.02777777778 | H10: 0.02777777778 | I10: 0.02777777778 | J10: 0.02777777778 | K10: 0.02777777778 | L10: 0.02777777778 | M10: 0.02777777778 | N10: 0.02777777778 | O10: 0.02777777778 | P10: 0.02777777778 | Q10: 0.02777777778 | R10: 0.02777777778 | S10: 0.02777777778 | T10: 0.02777777778 | U10: 0.02777777778 | V10: 0.02777777778 | W10: 0.02777777778 | X10: 0.02777777778 | Y10: 0.02777777778 | Z10: 0.02777777778 | AA10: 0.02777777778 | AB10: 0.02777777778 | AC10: 0.02777777778 | AD10: 0.02777777778 | AE10: 0.02777777778 | AF10: 0.02777777778 | AG10: 0.02777777778 | AH10: 0.02777777778 | AI10: 0.02777777778 | AJ10: 0.02777777778 | AK10: 0.02777777778 | AL10: 0.02777777778 | AM10: 0.02777777778 | AN10: 0.02777777778
E11: =1/36 -> 0.02777777778 | F11: 0.02777777778 | G11: 0.02777777778 | H11: 0.02777777778 | I11: 0.02777777778 | J11: 0.02777777778 | K11: 0.02777777778 | L11: 0.02777777778 | M11: 0.02777777778 | N11: 0.02777777778 | O11: 0.02777777778 | P11: 0.02777777778 | Q11: 0.02777777778 | R11: 0.02777777778 | S11: 0.02777777778 | T11: 0.02777777778 | U11: 0.02777777778 | V11: 0.02777777778 | W11: 0.02777777778 | X11: 0.02777777778 | Y11: 0.02777777778 | Z11: 0.02777777778 | AA11: 0.02777777778 | AB11: 0.02777777778 | AC11: 0.02777777778 | AD11: 0.02777777778 | AE11: 0.02777777778 | AF11: 0.02777777778 | AG11: 0.02777777778 | AH11: 0.02777777778 | AI11: 0.02777777778 | AJ11: 0.02777777778 | AK11: 0.02777777778 | AL11: 0.02777777778 | AM11: 0.02777777778 | AN11: =1/36 -> 0.02777777778
A12: 2. | B12: =VLOOKUP($A12,ORÇAMENTO!$A$8:$J$801,4,FALSE) -> ENGENHEIRO ELETRICISTA DE OBRA PLENO COM ENCARGOS COMPLEMENTARES - 22 HORAS MENSAIS DURANTE 4 MESES DE ACORDO COM A DEMANDA DA OBRA | C12: =VLOOKUP($A12,ORÇAMENTO!$A$8:$J$801,10,FALSE) -> 13558.6 | D12: =C12/$C$18 -> 0.02684589139 | E12: =E14*$C12 -> 0 | F12: 0 | G12: 0 | H12: 0 | I12: 0 | J12: 0 | K12: 0 | L12: 0 | M12: 0 | N12: 0 | O12: 0 | P12: 0 | Q12: =Q14*$C12 -> 0 | R12: 0 | S12: =S14*$C12 -> 0 | T12: 0 | U12: 0 | V12: 0 | W12: 0 | X12: 0 | Y12: 0 | Z12: 0 | AA12: 0 | AB12: 0 | AC12: 0 | AD12: 0 | AE12: 0 | AF12: 0 | AG12: 0 | AH12: 0 | AI12: 0 | AJ12: 0 | AK12: 3389.65 | AL12: 3389.65 | AM12: 3389.65 | AN12: 3389.65
E13: =E14 -> 0 | F13: 0 | G13: 0 | H13: 0 | I13: 0 | J13: 0 | K13: 0 | L13: 0 | M13: 0 | N13: 0 | O13: 0 | P13: 0 | Q13: 0 | R13: 0 | S13: 0 | T13: 0 | U13: 0 | V13: 0 | W13: 0 | X13: 0 | Y13: 0 | Z13: 0 | AA13: 0 | AB13: 0 | AC13: 0 | AD13: 0 | AE13: 0 | AF13: 0 | AG13: 0 | AH13: 0 | AI13: 0 | AJ13: 0 | AK13: 0.25 | AL13: 0.25 | AM13: 0.25 | AN13: 0.25
AK14: 0.25 | AL14: 0.25 | AM14: 0.25 | AN14: 0.25
A15: 3. | B15: =VLOOKUP($A15,ORÇAMENTO!$A$8:$J$801,4,FALSE) -> ENGENHEIRO MECÂNICO DE OBRA PLENO COM ENCARGOS COMPLEMENTARES - 8 HORAS MENSAIS DURANTE 4 MESES DE ACORDO COM A DEMANDA DA OBRA | C15: =VLOOKUP($A15,ORÇAMENTO!$A$8:$J$801,10,FALSE) -> 4930.4 | D15: =C15/$C$18 -> 0.009762142325 | E15: =E17*$C15 -> 0 | F15: 0 | G15: 0 | H15: 0 | I15: 0 | J15: 0 | K15: 0 | L15: 0 | M15: 0 | N15: 0 | O15: 0 | P15: 0 | Q15: =Q17*$C15 -> 0 | R15: 0 | S15: =S17*$C15 -> 0 | T15: 0 | U15: 0 | V15: 0 | W15: 0 | X15: 0 | Y15: 0 | Z15: 0 | AA15: 0 | AB15: 0 | AC15: 0 | AD15: 0 | AE15: 0 | AF15: 0 | AG15: 0 | AH15: 0 | AI15: 0 | AJ15: 0 | AK15: 1232.6 | AL15: 1232.6 | AM15: 1232.6 | AN15: 1232.6
E16: =E17 -> 0 | F16: 0 | G16: 0 | H16: 0 | I16: 0 | J16: 0 | K16: 0 | L16: 0 | M16: 0 | N16: 0 | O16: 0 | P16: 0 | Q16: 0 | R16: 0 | S16: 0 | T16: 0 | U16: 0 | V16: 0 | W16: 0 | X16: 0 | Y16: 0 | Z16: 0 | AA16: 0 | AB16: 0 | AC16: 0 | AD16: 0 | AE16: 0 | AF16: 0 | AG16: 0 | AH16: 0 | AI16: 0 | AJ16: 0 | AK16: 0.25 | AL16: 0.25 | AM16: 0.25 | AN16: 0.25
AK17: 0.25 | AL17: 0.25 | AM17: 0.25 | AN17: 0.25
B18: TOTAL | C18: =SUM(C9:C17) -> 505053.075 | D18: =SUM(D9:D17) -> 1 | E18: =E9+E12+E15 -> 13515.66875 | F18: =F9+F12+F15 -> 13515.66875 | G18: =G9+G12+G15 -> 13515.66875 | H18: 13515.66875 | I18: 13515.66875 | J18: 13515.66875 | K18: 13515.66875 | L18: 13515.66875 | M18: 13515.66875 | N18: 13515.66875 | O18: 13515.66875 | P18: 13515.66875 | Q18: 13515.66875 | R18: 13515.66875 | S18: =S9+S12+S15 -> 13515.66875 | T18: 13515.66875 | U18: 13515.66875 | V18: 13515.66875 | W18: 13515.66875 | X18: 13515.66875 | Y18: 13515.66875 | Z18: 13515.66875 | AA18: 13515.66875 | AB18: 13515.66875 | AC18: 13515.66875 | AD18: 13515.66875 | AE18: 13515.66875 | AF18: 13515.66875 | AG18: 13515.66875 | AH18: 13515.66875 | AI18: 13515.66875 | AJ18: 13515.66875 | AK18: 18137.91875 | AL18: 18137.91875 | AM18: 18137.91875 | AN18: 18137.91875
E19: =E18/$C$18 -> 0.02676088795 | F19: 0.02676088795 | G19: 0.02676088795 | H19: 0.02676088795 | I19: 0.02676088795 | J19: 0.02676088795 | K19: 0.02676088795 | L19: 0.02676088795 | M19: 0.02676088795 | N19: 0.02676088795 | O19: 0.02676088795 | P19: 0.02676088795 | Q19: =Q18/$C$18 -> 0.02676088795 | R19: 0.02676088795 | S19: =S18/$C$18 -> 0.02676088795 | T19: 0.02676088795 | U19: 0.02676088795 | V19: 0.02676088795 | W19: 0.02676088795 | X19: 0.02676088795 | Y19: 0.02676088795 | Z19: 0.02676088795 | AA19: 0.02676088795 | AB19: 0.02676088795 | AC19: 0.02676088795 | AD19: 0.02676088795 | AE19: 0.02676088795 | AF19: 0.02676088795 | AG19: 0.02676088795 | AH19: 0.02676088795 | AI19: 0.02676088795 | AJ19: 0.02676088795 | AK19: 0.03591289638 | AL19: 0.03591289638 | AM19: 0.03591289638 | AN19: 0.03591289638
C20: TOTAL ACUMULADO | E20: =E18 -> 13515.66875 | F20: =E20+F18 -> 27031.3375 | G20: 40547.00625 | H20: 54062.675 | I20: 67578.34375 | J20: 81094.0125 | K20: 94609.68125 | L20: 108125.35 | M20: 121641.0187 | N20: 135156.6875 | O20: 148672.3563 | P20: 162188.025 | Q20: 175703.6938 | R20: 189219.3625 | S20: =R20+S18 -> 202735.0313 | T20: =S20+T18 -> 216250.7 | U20: =T20+U18 -> 229766.3688 | V20: =U20+V18 -> 243282.0375 | W20: =V20+W18 -> 256797.7063 | X20: =W20+X18 -> 270313.375 | Y20: =X20+Y18 -> 283829.0438 | Z20: =Y20+Z18 -> 297344.7125 | AA20: =Z20+AA18 -> 310860.3813 | AB20: =AA20+AB18 -> 324376.05 | AC20: =AB20+AC18 -> 337891.7188 | AD20: =AC20+AD18 -> 351407.3875 | AE20: =AD20+AE18 -> 364923.0563 | AF20: =AE20+AF18 -> 378438.725 | AG20: =AF20+AG18 -> 391954.3938 | AH20: =AG20+AH18 -> 405470.0625 | AI20: =AH20+AI18 -> 418985.7313 | AJ20: =AI20+AJ18 -> 432501.4 | AK20: =AJ20+AK18 -> 450639.3188 | AL20: =AK20+AL18 -> 468777.2375 | AM20: =AL20+AM18 -> 486915.1563 | AN20: =AM20+AN18 -> 505053.075
E21: =E20/$C$18 -> 0.02676088795 | F21: 0.0535217759 | G21: 0.08028266386 | H21: 0.1070435518 | I21: 0.1338044398 | J21: 0.1605653277 | K21: 0.1873262157 | L21: 0.2140871036 | M21: 0.2408479916 | N21: 0.2676088795 | O21: 0.2943697675 | P21: 0.3211306554 | Q21: =Q20/$C$18 -> 0.3478915434 | R21: 0.3746524313 | S21: =S20/$C$18 -> 0.4014133193 | T21: 0.4281742072 | U21: 0.4549350952 | V21: 0.4816959831 | W21: 0.5084568711 | X21: 0.535217759 | Y21: 0.561978647 | Z21: 0.5887395349 | AA21: 0.6155004229 | AB21: 0.6422613109 | AC21: 0.6690221988 | AD21: 0.6957830868 | AE21: 0.7225439747 | AF21: 0.7493048627 | AG21: 0.7760657506 | AH21: 0.8028266386 | AI21: 0.8295875265 | AJ21: 0.8563484145 | AK21: 0.8922613109 | AL21: 0.9281742072 | AM21: 0.9640871036 | AN21: 1

Sheet ENCARGOS SOCIAIS
A4: ENCARGOS SOCIAIS SOBRE A MÃO DE OBRA - MT
A5: CÓDIGO | B5: DESCRIÇÃO | C5: COM DESONERAÇÃO | E5: SEM DESONERAÇÃO
C6: HORISTA % | D6: MENSALISTA % | E6: HORISTA % | F6: MENSALISTA %
A7: GRUPO A
A8: A1 | B8: INSS | C8: 0 | D8: 0 | E8: 0.2 | F8: 0.2
A9: A2 | B9: SESI | C9: 0.015 | D9: 0.015 | E9: 0.015 | F9: 0.015
A10: A3 | B10: SENAI | C10: 0.01 | D10: 0.01 | E10: 0.01 | F10: 0.01
A11: A4 | B11: INCRA | C11: 0.002 | D11: 0.002 | E11: 0.002 | F11: 0.002
A12: A5 | B12: SEBRAE | C12: 0.006 | D12: 0.006 | E12: 0.006 | F12: 0.006
A13: A6 | B13: Salário Educação | C13: 0.025 | D13: 0.025 | E13: 0.025 | F13: 0.025
A14: A7 | B14: Seguro Contra Acidentes de Trabalho | C14: 0.03 | D14: 0.03 | E14: 0.03 | F14: 0.03
A15: A8 | B15: FGTS | C15: 0.08 | D15: 0.08 | E15: 0.08 | F15: 0.08
A16: A9 | B16: SECONCI | C16: 0 | D16: 0 | E16: 0 | F16: 0
A17: A | B17: Total | C17: =SUM(C8:C16) -> 0.168 | D17: =SUM(D8:D16) -> 0.168 | E17: =SUM(E8:E16) -> 0.368 | F17: =SUM(F8:F16) -> 0.368
A18: GRUPO B
A19: B1 | B19: Repouso Semanal Remunerado | C19: 0.1778 | D19: Não incide | E19: 0.1778 | F19: Não incide
A20: B2 | B20: Feriados | C20: 0.0367 | D20: Não incide | E20: 0.0367 | F20: Não incide
A21: B3 | B21: Auxílio - Enfermidade | C21: 0.0092 | D21: 0.0069 | E21: 0.0092 | F21: 0.0069
A22: B4 | B22: 13º Salário | C22: 0.1107 | D22: 0.0833 | E22: 0.1107 | F22: 0.0833
A23: B5 | B23: Licença Paternidade | C23: 0.0008 | D23: 0.0006 | E23: 0.0008 | F23: 0.0006
A24: B6 | B24: Faltas Justificadas | C24: 0.0074 | D24: 0.0056 | E24: 0.0074 | F24: 0.0056
A25: B7 | B25: Dias de Chuvas | C25: 0.011 | D25: Não incide | E25: 0.011 | F25: Não incide
A26: B8 | B26: Auxílio Acidente de Trabalho | C26: 0.0013 | D26: 0.0009 | E26: 0.0013 | F26: 0.0009
A27: B9 | B27: Férias Gozadas | C27: 0.1376 | D27: 0.1036 | E27: 0.1376 | F27: 0.1036
A28: B10 | B28: Salário Maternidade | C28: 0.0003 | D28: 0.0002 | E28: 0.0003 | F28: 0.0002
A29: B | B29: Total | C29: =SUM(C19:C28) -> 0.4928 | D29: =SUM(D19:D28) -> 0.2011 | E29: =SUM(E19:E28) -> 0.4928 | F29: =SUM(F19:F28) -> 0.2011
A30: GRUPO C
A31: C1 | B31: Aviso Prévio Indenizado | C31: 0.0828 | D31: 0.0623 | E31: 0.0828 | F31: 0.0623
A32: C2 | B32: Aviso Prévio Trabalhado | C32: 0.002 | D32: 0.0015 | E32: 0.002 | F32: 0.0015
A33: C3 | B33: Férias Indenizadas | C33: 0.0093 | D33: 0.007 | E33: 0.0093 | F33: 0.007
A34: C4 | B34: Depósito Rescisão Sem Justa Causa | C34: 0.0484 | D34: 0.0365 | E34: 0.0484 | F34: 0.0365
A35: C5 | B35: Indenização Adicional | C35: 0.007 | D35: 0.0052 | E35: 0.007 | F35: 0.0052
A36: C | B36: Total | C36: =SUM(C31:C35) -> 0.1495 | D36: =SUM(D31:D35) -> 0.1125 | E36: =SUM(E31:E35) -> 0.1495 | F36: =SUM(F31:F35) -> 0.1125
A37: GRUPO D
A38: D1 | B38: Reincidência de Grupo A sobre Grupo B | C38: =C17*C29 -> 0.0827904 | D38: =D17*D29 -> 0.0337848 | E38: =E17*E29 -> 0.1813504 | F38: =F17*F29 -> 0.0740048
A39: D2 | B39: Reincidência de Grupo A sobre Aviso Prévio Trabalhado e Reincidência do FGTS sobre Aviso Prévio Indenizado | C39: 0.007 | D39: 0.0052 | E39: 0.0074 | F39: 0.0055
B40: Total | C40: =SUM(C38:C39) -> 0.0897904 | D40: =SUM(D38:D39) -> 0.0389848 | E40: =SUM(E38:E39) -> 0.1887504 | F40: =SUM(F38:F39) -> 0.0795048
A41: TOTAL(A+B+C+D) | C41: =C17+C29+C36+C40 -> 0.9000904 | D41: =D17+D29+D36+D40 -> 0.5205848 | E41: =E17+E29+E36+E40 -> 1.1990504 | F41: =F17+F29+F36+F40 -> 0.7611048
